bitfinex-derivatives/quotes_BTCF0:USTF0_20250711
["timestamp","ask_amount","ask_price","bid_price","bid_amount"]
[1752263418948,1.18062888,117970.0,117960.0,0.00189542]
[1752263420447,1.76670888,117970.0,117960.0,0.00189542]
[1752263422648,1.7057011,117970.0,117960.0,0.00189542]
[1752263425051,2.10413614,117970.0,117960.0,0.00189542]
[1752263425246,2.16513253,117970.0,117960.0,0.00189542]
[1752263426152,2.10413614,117970.0,117960.0,0.00189542]
[1752263426654,1.7057011,117970.0,117960.0,0.00189542]
[1752263427354,2.10413614,117970.0,117960.0,0.00189542]
[1752263430354,0.2019061,117930.0,117920.0,0.04590058]
[1752263430555,2.03565554,117930.0,117920.0,0.02448058]
[1752263431455,2.04396268,117930.0,117920.0,0.02448058]
[1752263431956,2.04392268,117930.0,117920.0,0.02448058]
[1752263432258,1.64548764,117930.0,117920.0,0.02448058]
[1752263433353,1.64548764,117930.0,117920.0,0.02548058]
[1752263433959,1.05952764,117930.0,117920.0,0.02548058]
[1752263434154,1.64556764,117930.0,117920.0,0.02448058]
[1752263435159,1.64552764,117930.0,117920.0,0.02448058]
[1752263440461,1.0512205,117930.0,117920.0,0.04590058]
[1752263440662,0.29198546,117930.0,117920.0,0.61240098]
[1752263441062,0.2179761,117930.0,117920.0,1.01083602]
[1752263441366,0.3268103,117940.0,117930.0,0.2271061]
[1752263441565,0.3592003,117940.0,117930.0,1.1739461]
[1752263444471,0.3592003,117940.0,117930.0,0.5879061]
[1752263444667,0.3592003,117940.0,117930.0,1.1739461]
[1752263445065,0.3592003,117940.0,117930.0,1.1739061]
[1752263445768,0.3592003,117940.0,117930.0,0.5879061]
[1752263445969,0.3592003,117940.0,117930.0,1.1739061]
[1752263446872,0.75763534,117940.0,117930.0,0.41839]
[1752263447070,0.75783534,117940.0,117930.0,1.00459]
[1752263447270,0.75783534,117940.0,117930.0,1.1741061]
[1752263447773,0.75783534,117940.0,117930.0,0.41859]
[1752263447973,0.75783534,117940.0,117930.0,1.00459]
[1752263448174,0.75783534,117940.0,117930.0,1.1741061]
[1752263450374,0.75783534,117940.0,117930.0,0.64379]
[1752263450570,0.75783534,117940.0,117930.0,0.60758]
[1752263451366,0.75783534,117940.0,117930.0,0.02162]
[1752263451670,0.75783534,117940.0,117930.0,0.0002]
[1752263452675,0.75783534,117940.0,117930.0,0.02047]
[1752263453775,0.75783534,117940.0,117930.0,0.1899861]
[1752263454276,0.75783534,117940.0,117930.0,0.2140861]
[1752263455378,0.3594003,117940.0,117930.0,0.5875561]
[1752263456278,0.1697017,117940.0,117930.0,0.98599114]
[1752263456477,0.2164517,117940.0,117930.0,0.98599114]
[1752263456678,0.2694917,117940.0,117930.0,0.98599114]
[1752263457873,0.2694917,117940.0,117930.0,0.40837]
[1752263457874,0.66792674,117940.0,117930.0,0.40837]
[1752263458078,0.66792674,117940.0,117930.0,0.97019]
[1752263458981,1.02872674,117940.0,117930.0,0.60939]
[1752263459182,0.66792674,117940.0,117930.0,0.61039]
[1752263460884,0.66792674,117940.0,117930.0,1.1407061]
[1752263461080,0.06985,117940.0,117930.0,1.57591114]
[1752263461285,0.0002,117940.0,117930.0,1.99549514]
[1752263461486,0.04675,117960.0,117950.0,0.2260074]
[1752263461787,0.04675,117960.0,117950.0,1.93192244]
[1752263461788,0.216223,117960.0,117950.0,1.93192244]
[1752263462182,0.239123,117960.0,117950.0,1.93192244]
[1752263462795,0.239123,117960.0,117950.0,1.5334874]
[1752263463085,0.269263,117960.0,117950.0,1.60301559]
[1752263463884,0.09979,117960.0,117950.0,1.60301559]
[1752263464084,0.269263,117960.0,117950.0,1.60301559]
[1752263464385,0.269263,117960.0,117950.0,2.06993804]
[1752263464690,0.269263,117960.0,117950.0,1.60301559]
[1752263465290,0.269263,117960.0,117950.0,1.61140236]
[1752263466886,0.09979,117960.0,117950.0,2.07832481]
[1752263467090,0.04675,117960.0,117950.0,2.07832481]
[1752263467391,0.216223,117960.0,117950.0,2.07832481]
[1752263467592,0.06965,117960.0,117950.0,2.07832481]
[1752263467788,0.2391229,117960.0,117950.0,2.07832481]
[1752263468889,0.04675,117960.0,117950.0,2.07832481]
[1752263471394,0.06965,117960.0,117950.0,2.07832481]
[1752263471892,0.04675,117960.0,117950.0,2.07832481]
[1752263473592,0.25474057,117970.0,117950.0,1.90883741]
[1752263473789,0.33163057,117970.0,117960.0,0.586793]
[1752263474390,0.11979397,117970.0,117960.0,1.05371545]
[1752263474593,0.12079397,117970.0,117960.0,1.05371545]
[1752263474793,0.2390911,117990.0,117960.0,1.01721645]
[1752263474991,0.33000735,117990.0,117980.0,0.69288665]
[1752263475192,0.33000735,117990.0,117980.0,1.05368665]
[1752263475401,0.2692237,117990.0,117980.0,0.5867642]
[1752263475995,0.33000735,117990.0,117980.0,0.5867642]
[1752263476195,0.33200735,117990.0,117980.0,0.5867642]
[1752263476606,0.33000735,117990.0,117980.0,0.5867642]
[1752263480504,0.2692237,117990.0,117980.0,0.5867642]
[1752263480703,0.2694237,117990.0,117980.0,0.5869642]
[1752263481900,0.09999,117990.0,117980.0,0.5869642]
[1752263482101,0.2694199,117990.0,117980.0,1.05388665]
[1752263482305,0.09999,117990.0,117980.0,1.05388665]
[1752263482501,0.0002,117990.0,117980.0,1.05388665]
[1752263483008,0.0002,117990.0,117980.0,1.55388665]
[1752263483901,0.1861065,118010.0,118000.0,0.1694155]
[1752263484110,0.3555077,118010.0,118000.0,2.24390685]
[1752263484498,0.3555077,118010.0,118000.0,1.7769844]
[1752263484499,0.16813365,118010.0,118000.0,1.7769844]
[1752263484703,0.10735,118010.0,118000.0,1.7769844]
[1752263484903,0.2767512,118010.0,118000.0,2.17510246]
[1752263485111,0.10835,118010.0,118000.0,2.17510246]
[1752263485409,0.2777512,118010.0,118000.0,2.17510246]
[1752263485711,0.2777512,118010.0,118000.0,2.18365537]
[1752263485908,0.2777512,118010.0,118000.0,1.78553731]
[1752263486110,0.67586926,118010.0,118000.0,1.7769844]
[1752263486810,0.67586926,118010.0,118000.0,1.7647144]
[1752263487302,0.67586926,118010.0,118000.0,1.77298647]
[1752263488010,0.67586926,118010.0,118000.0,1.78525647]
[1752263488309,0.67586926,118010.0,118000.0,1.60357097]
[1752263489207,0.67586926,118010.0,118000.0,1.77298647]
[1752263489408,0.2777512,118010.0,118000.0,1.77298647]
[1752263489709,0.67586926,118010.0,118000.0,1.78525647]
[1752263490512,0.67586926,118010.0,118000.0,1.60357097]
[1752263491108,0.67586926,118010.0,118000.0,1.77298647]
[1752263491707,0.67586926,118010.0,118000.0,1.60357097]
[1752263491907,0.67586926,118010.0,117980.0,0.40487]
[1752263491908,0.03272,117990.0,117980.0,0.40487]
[1752263492110,0.67289796,117990.0,117980.0,1.1628342]
[1752263492816,0.10535,117990.0,117980.0,1.57322226]
[1752263493212,0.2747799,117990.0,117980.0,1.57322226]
[1752263493713,0.10535,117990.0,117980.0,1.58386779]
[1752263493913,0.2747799,117990.0,117980.0,1.58386779]
[1752263494111,0.2747799,117990.0,117980.0,1.18574973]
[1752263494308,0.04961,117990.0,117980.0,1.58586779]
[1752263495208,0.07263,117990.0,117980.0,1.18774973]
[1752263495415,0.10535,117990.0,117980.0,1.58586779]
[1752263495715,0.2747799,117990.0,117980.0,2.08586779]
[1752263496011,0.2747799,117990.0,117980.0,1.67547973]
[1752263496012,0.67289796,117990.0,117980.0,1.67547973]
[1752263496216,0.50346806,117990.0,117980.0,1.49739]
[1752263496416,0.50346806,117990.0,117980.0,1.6791042]
[1752263496417,0.2747799,117990.0,117980.0,1.6791042]
[1752263496919,0.2747799,117990.0,117980.0,1.1791042]
[1752263497117,0.2747799,117990.0,117980.0,1.1792642]
[1752263499524,0.04961,117990.0,117980.0,1.57738226]
[1752263499927,0.2924148,118000.0,117990.0,0.2257699]
[1752263500126,0.2924148,118000.0,117990.0,0.98468796]
[1752263500330,0.69053286,118000.0,117990.0,0.04407]
[1752263500532,0.69053286,118000.0,117990.0,0.60795]
[1752263500734,0.69073286,118000.0,117990.0,0.58852]
[1752263502430,1.08885092,118000.0,117990.0,0.0012]
[1752263502729,1.51043457,118000.0,117990.0,0.58984]
[1752263502936,1.51043457,118000.0,117990.0,0.0012]
[1752263503435,1.44965092,118000.0,117990.0,0.0012]
[1752263503630,1.44965092,118000.0,117990.0,0.0002]
[1752263504136,1.45265092,118000.0,117990.0,0.0002]
[1752263507137,1.52863048,118000.0,117990.0,0.0002]
[1752263508438,0.83060876,118000.0,117990.0,0.0002]
[1752263508639,0.7546292,118000.0,117990.0,0.0002]
[1752263508834,1.1154292,118000.0,117990.0,0.0002]
[1752263510338,1.05453286,118000.0,117990.0,0.0002]
[1752263511037,1.45265092,118000.0,117990.0,0.0002]
[1752263511240,1.52863048,118000.0,117990.0,0.0002]
[1752263512140,1.45265092,118000.0,117990.0,0.0002]
[1752263512540,1.52863048,118000.0,117990.0,0.0002]
[1752263513636,1.45265092,118000.0,117990.0,0.0002]
[1752263513837,1.05453286,118000.0,117990.0,0.0002]
[1752263515044,1.45265092,118000.0,117990.0,0.0002]
[1752263515441,1.05453286,118000.0,117990.0,0.0002]
[1752263516040,1.13051242,118000.0,117990.0,0.0002]
[1752263516540,1.13051242,118000.0,117990.0,0.01983]
[1752263516740,0.76971242,118000.0,117990.0,0.40333]
[1752263516939,0.76971242,118000.0,117990.0,0.5727598]
[1752263517343,0.76971242,118000.0,117990.0,0.40333]
[1752263517843,0.76971242,118000.0,117980.0,1.00543256]
[1752263518035,0.11090263,117990.0,117930.0,0.04264]
[1752263518234,0.270006,117930.0,117920.0,1.40101098]
[1752263518442,0.85940806,117930.0,117920.0,1.40101098]
[1752263518640,1.02892406,117930.0,117920.0,1.44365098]
[1752263518944,1.02892406,117930.0,117920.0,1.27412058]
[1752263518945,0.239276,117930.0,117920.0,1.27412058]
[1752263519247,0.6848177,117940.0,117930.0,0.07284]
[1752263519441,0.6848177,117940.0,117930.0,1.24484]
[1752263519442,0.7023842,117940.0,117930.0,1.24484]
[1752263519746,0.7331142,117940.0,117930.0,1.24484]
[1752263519940,1.20025077,117940.0,117930.0,1.24658]
[1752263520336,1.20025077,117940.0,117930.0,1.24484]
[1752263520646,1.20025077,117940.0,117930.0,2.42312]
[1752263520844,1.20125077,117940.0,117930.0,2.42312]
[1752263522947,0.7341142,117940.0,117930.0,2.42312]
[1752263523149,1.20125077,117940.0,117930.0,2.42312]
[1752263527146,0.6336242,117940.0,117930.0,2.42486]
[1752263527450,0.1880681,117940.0,117930.0,2.76396]
[1752263528347,0.1870681,117940.0,117930.0,2.76396]
[1752263528550,0.1870681,117940.0,117930.0,3.26696]
[1752263528751,0.1870681,117940.0,117930.0,3.097376]
[1752263529152,0.1870681,117940.0,117930.0,3.098376]
[1752263529849,0.1870681,117940.0,117930.0,3.099376]
[1752263530046,0.3608,117950.0,117930.0,3.60695567]
[1752263530248,0.4073,117960.0,117950.0,0.1694873]
[1752263530249,0.6424088,117960.0,117950.0,0.1694873]
[1752263530549,0.6847789,117960.0,117950.0,1.36458752]
[1752263530854,0.6424088,117960.0,117950.0,1.36458752]
[1752263531044,0.6424088,117960.0,117950.0,1.43380298]
[1752263531553,0.6424088,117960.0,117950.0,1.93380298]
[1752263531754,0.6424088,117960.0,117950.0,1.93680298]
[1752263532053,0.5726488,117960.0,117950.0,1.93680298]
[1752263532250,0.3628,117970.0,117960.0,0.1694729]
[1752263532456,0.3628,117970.0,117960.0,0.63660947]
[1752263532646,0.002,117970.0,117960.0,0.80615347]
[1752263533249,0.002,117970.0,117960.0,1.16695347]
[1752263533454,0.002,117970.0,117960.0,1.41695347]
[1752263534255,0.002,117970.0,117960.0,1.24740947]
[1752263534453,0.003,117970.0,117960.0,1.24740947]
[1752263534752,0.3608,118000.0,117990.0,0.1694298]
[1752263534947,0.3608,118000.0,117990.0,3.00335437]
[1752263535151,0.361,118000.0,117990.0,3.17305037]
[1752263536149,0.5324154,118000.0,117990.0,3.17305037]
[1752263536554,0.5288354,118000.0,117990.0,3.1849692]
[1752263536754,0.0022,118000.0,117990.0,4.4065692]
[1752263538163,0.0002,118000.0,117990.0,4.4095692]
[1752263538462,0.0002,118000.0,117990.0,4.6595692]
[1752263538764,0.0002,118000.0,117990.0,4.6605692]
[1752263539462,0.0002,118000.0,117990.0,5.34285912]
[1752263540162,0.0002,118000.0,117990.0,4.87572255]
[1752263540359,0.0002,118000.0,117990.0,4.57582255]
[1752263540565,0.0002,118000.0,117990.0,4.87572255]
[1752263543262,0.0002,118000.0,117990.0,4.57582255]
[1752263543765,0.0002,118000.0,117990.0,4.74531855]
[1752263544365,0.0002,118000.0,117990.0,4.49531855]
[1752263544564,0.0002,118000.0,117990.0,4.74531855]
[1752263548462,0.0002,118000.0,117990.0,3.31947855]
[1752263548667,0.12411,118000.0,117990.0,3.40885663]
[1752263548868,0.12411,118000.0,117990.0,3.70875663]
[1752263549369,0.19303,118000.0,117990.0,2.53383663]
[1752263549671,0.19603,118000.0,117990.0,3.12171663]
[1752263549866,0.3624454,118000.0,117990.0,2.53038663]
[1752263550066,0.19603,118000.0,117990.0,3.11814663]
[1752263550270,0.55683,118000.0,117990.0,2.75734663]
[1752263550566,0.7262454,118000.0,117990.0,2.45744663]
[1752263550769,0.19603,118000.0,117990.0,2.45744663]
[1752263552072,0.19603,118000.0,117990.0,2.9245832]
[1752263555172,0.3654454,118000.0,117990.0,2.45744663]
[1752263556072,0.19603,118000.0,117990.0,2.45744663]
[1752263556472,0.3654454,118000.0,117990.0,2.45744663]
[1752263557972,0.7262454,118000.0,117990.0,2.28801683]
[1752263558177,1.2108693,118000.0,117990.0,1.107748]
[1752263558370,1.2108693,118000.0,117990.0,1.09172]
[1752263558371,1.66051854,118000.0,117990.0,1.09172]
[1752263558572,1.67802469,118000.0,117990.0,0.59172]
[1752263558773,1.21088812,118000.0,117990.0,0.59172]
[1752263559477,1.21088812,118000.0,117990.0,0.0042]
[1752263559677,1.21088812,118000.0,117990.0,0.59272]
[1752263560072,1.21088812,118000.0,117990.0,0.59172]
[1752263560274,0.74375155,118000.0,117990.0,0.7611498]
[1752263560477,0.74375155,118000.0,117990.0,0.59172]
[1752263560673,0.74375155,118000.0,117990.0,0.7611498]
[1752263560975,0.74475155,118000.0,117990.0,0.7611498]
[1752263561377,0.74475155,118000.0,117990.0,0.7591498]
[1752263561873,0.74375155,118000.0,117990.0,0.7591498]
[1752263563481,0.21353615,118000.0,117990.0,1.22628637]
[1752263563670,0.14461615,118000.0,117990.0,1.72628637]
[1752263563876,0.01770615,118000.0,117990.0,2.08708637]
[1752263564578,0.01770615,118000.0,117990.0,2.25658237]
[1752263564773,0.0002,118000.0,117990.0,2.25658237]
[1752263564979,0.01781977,118000.0,117990.0,2.25658237]
[1752263565583,0.0002,118000.0,117990.0,2.25658237]
[1752263566787,0.01781952,118000.0,117990.0,2.25658237]
[1752263569487,0.01781952,118000.0,117990.0,2.55648237]
[1752263570678,0.01781952,118000.0,117990.0,2.64123172]
[1752263572187,0.01781952,118000.0,117990.0,2.55648237]
[1752263572588,0.01781952,118000.0,117990.0,2.56048237]
[1752263573682,0.0002,118000.0,117990.0,2.56048237]
[1752263574079,0.01773417,118000.0,117990.0,2.56248237]
[1752263574990,0.01773417,118000.0,117990.0,2.56348237]
[1752263576090,0.0002,118000.0,117990.0,2.56348237]
[1752263576584,0.0002,118000.0,117990.0,2.26358237]
[1752263577284,0.0002,118000.0,117990.0,2.73071894]
[1752263577488,0.0002,118000.0,117990.0,2.26358237]
[1752263578990,0.0002,118000.0,117990.0,2.34833172]
[1752263580488,0.0002,118000.0,117990.0,2.76515572]
[1752263590801,0.18786,118000.0,117990.0,2.68040637]
[1752263590997,0.19086,118000.0,117990.0,2.68040637]
[1752263592602,0.1231,118000.0,117990.0,2.68040637]
[1752263592900,0.1261,118000.0,117990.0,2.68040637]
[1752263593097,0.1261,118000.0,117990.0,3.85188637]
[1752263595298,0.0002,118000.0,117990.0,2.67704637]
[1752263595504,0.02419,118000.0,117990.0,3.26344637]
[1752263595699,0.02419,118000.0,117990.0,3.30853296]
[1752263596398,0.0002,118000.0,117990.0,3.30853296]
[1752263596804,0.0002,118000.0,117990.0,3.23937584]
[1752263597003,0.0002,118000.0,117990.0,3.63735529]
[1752263597200,0.0002,118000.0,117990.0,3.63235529]
[1752263597398,0.0002,118000.0,117990.0,3.63535529]
[1752263597593,0.0002,118000.0,117990.0,3.23729584]
[1752263598505,0.0002,118000.0,117990.0,3.63527529]
[1752263598805,0.0002,118000.0,117990.0,3.3056813]
[1752263599000,0.09484,118000.0,117990.0,3.3056813]
[1752263599900,0.11956,118000.0,117990.0,3.3056813]
[1752263600100,0.18519,118000.0,117990.0,2.7193613]
[1752263600302,0.18819,118000.0,117990.0,3.3055613]
[1752263602000,0.18819,118000.0,117990.0,3.3025613]
[1752263602208,0.20575578,118000.0,117990.0,3.3045613]
[1752263606809,0.20575578,118000.0,117990.0,2.83819639]
[1752263607009,0.20575578,118000.0,117990.0,3.3045613]
[1752263610211,0.02076578,118000.0,117990.0,3.3045613]
[1752263610401,0.01776578,118000.0,117990.0,3.77092621]
[1752263610600,0.09459431,118020.0,118010.0,0.1917611]
[1752263610802,0.08535761,118050.0,118040.0,0.200468]
[1752263611103,0.08535761,118050.0,118040.0,1.372828]
[1752263611409,0.47387761,118050.0,118040.0,1.372828]
[1752263611913,0.64522131,118050.0,118040.0,1.17236]
[1752263612209,0.94224252,118050.0,118040.0,1.341718]
[1752263612408,0.94224252,118050.0,118040.0,1.841718]
[1752263612803,1.03688252,118050.0,118040.0,1.841718]
[1752263613008,0.57051761,118050.0,118040.0,1.841718]
[1752263613209,0.73986131,118050.0,118040.0,1.841718]
[1752263613509,0.57051761,118050.0,118040.0,1.841718]
[1752263613710,0.57051761,118050.0,118040.0,1.91092753]
[1752263614205,0.73986131,118050.0,118040.0,1.24156953]
[1752263614406,1.20622622,118050.0,118040.0,1.24156953]
[1752263614601,0.57051761,118050.0,118040.0,1.41092753]
[1752263615406,0.56851761,118050.0,118040.0,1.41608675]
[1752263615708,0.56951761,118050.0,118040.0,1.41608675]
[1752263616011,0.56851761,118050.0,118040.0,1.41608675]
[1752263616211,0.56951761,118050.0,118040.0,1.41608675]
[1752263617515,0.56951761,118050.0,118040.0,1.88245166]
[1752263618013,0.56851761,118050.0,118040.0,1.88245166]
[1752263618217,0.57051761,118050.0,118040.0,1.88245166]
[1752263618710,0.19099,118050.0,118040.0,1.88245166]
[1752263619112,0.20901033,118050.0,118040.0,1.41608675]
[1752263619310,0.56981033,118050.0,118040.0,1.41608675]
[1752263619810,0.56981033,118050.0,118040.0,2.31385692]
[1752263620209,0.56981033,118050.0,118040.0,1.91608675]
[1752263621512,0.56981033,118050.0,118040.0,2.31385692]
[1752263622715,0.58719625,118050.0,118040.0,2.31385692]
[1752263625017,0.58719625,118050.0,118040.0,2.31340217]
[1752263628314,0.20837592,118050.0,118040.0,2.33107217]
[1752263628520,0.20857592,118050.0,118040.0,2.69207217]
[1752263630717,0.14294592,118050.0,118040.0,2.69207217]
[1752263631811,0.14194592,118050.0,118040.0,2.69307217]
[1752263632221,0.14194592,118050.0,118040.0,2.69407217]
[1752263632921,0.20781592,118050.0,118040.0,2.69407217]
[1752263635325,0.04626592,118050.0,118040.0,2.69407217]
[1752263635523,0.14428592,118050.0,118040.0,2.69407217]
[1752263640026,0.21015592,118050.0,118040.0,2.69407217]
[1752263642434,0.21015592,118050.0,118040.0,2.67640217]
[1752263643126,0.21015592,118050.0,118040.0,2.278632]
[1752263644532,0.21015592,118050.0,118040.0,2.69407217]
[1752263645633,0.60792609,118050.0,118040.0,1.748474]
[1752263645823,0.60792609,118050.0,118040.0,1.917832]
[1752263646724,0.60792609,118050.0,118040.0,1.74331478]
[1752263646725,1.13806979,118050.0,118040.0,1.74331478]
[1752263646929,1.15573976,118050.0,118040.0,1.24331478]
[1752263647129,1.57516376,118050.0,118040.0,1.24331478]
[1752263647329,1.57216376,118050.0,118040.0,1.23731478]
[1752263647733,2.03083656,118050.0,118040.0,0.80025478]
[1752263647929,1.63306639,118050.0,118040.0,0.80025478]
[1752263648134,1.63306639,118050.0,118040.0,0.79925478]
[1752263648336,1.63704351,118050.0,118040.0,0.79825478]
[1752263649036,1.63704351,118050.0,118040.0,0.06940953]
[1752263649037,2.03481368,118050.0,118040.0,0.06940953]
[1752263649335,0.1693724,118030.0,118020.0,0.2117307]
[1752263649529,1.30612849,118030.0,118020.0,0.7976507]
[1752263649731,1.72558449,118030.0,118020.0,0.58592]
[1752263649925,1.72558449,118030.0,118020.0,0.7553067]
[1752263650125,1.72558449,118030.0,118010.0,0.97979645]
[1752263650126,0.1693867,118020.0,118010.0,0.97979645]
[1752263650329,0.1694011,118010.0,118000.0,0.35895864]
[1752263650533,0.94535719,118010.0,118000.0,0.94483864]
[1752263650733,0.54767392,118010.0,118000.0,0.94483864]
[1752263650933,0.37818592,118010.0,118000.0,0.94483864]
[1752263651135,0.94535719,118010.0,118000.0,0.94483864]
[1752263651336,0.96784719,118010.0,118000.0,0.94483864]
[1752263651538,0.79844609,118010.0,118000.0,0.94483864]
[1752263651733,0.03987592,118010.0,118000.0,1.34260881]
[1752263652038,0.40067592,118010.0,118000.0,1.34260881]
[1752263652537,0.40067592,118010.0,118000.0,0.94783864]
[1752263653437,0.40067592,118010.0,118000.0,0.77842484]
[1752263653838,0.57007702,118010.0,118000.0,0.77842484]
[1752263654233,0.57007702,118010.0,118000.0,0.84729344]
[1752263655031,0.40067592,118010.0,118000.0,1.43047019]
[1752263655339,0.01738592,118010.0,118000.0,1.43347019]
[1752263656038,0.01738592,118010.0,118000.0,1.93347019]
[1752263656440,0.01738592,118010.0,118000.0,2.29427019]
[1752263657233,0.01738592,118010.0,118000.0,1.93347019]
[1752263658041,0.01738592,118010.0,118000.0,1.93647019]
[1752263666845,0.01738592,118010.0,118000.0,1.53870002]
[1752263667045,0.01758592,118010.0,118000.0,1.93667019]
[1752263669050,0.01758592,118010.0,118000.0,1.53890002]
[1752263669250,0.01758592,118010.0,118000.0,1.93667019]
[1752263670251,0.01758592,118010.0,118000.0,1.53890002]
[1752263670452,0.01758592,118010.0,118000.0,1.93667019]
[1752263670951,0.01758592,118010.0,118000.0,2.69224036]
[1752263671144,0.39260503,118040.0,118030.0,0.3683824]
[1752263671145,0.38209,118040.0,118030.0,0.3683824]
[1752263671341,0.38209,118040.0,118030.0,1.93891257]
[1752263671753,0.38209,118040.0,118030.0,1.5411424]
[1752263672153,0.551448,118040.0,118030.0,1.5411424]
[1752263672348,0.551448,118040.0,118030.0,1.37177]
[1752263672548,0.551448,118040.0,118030.0,1.5411424]
[1752263674161,0.551448,118040.0,118030.0,1.54420465]
[1752263674353,0.38209,118040.0,118030.0,1.54420465]
[1752263674955,0.551448,118040.0,118030.0,1.54420465]
[1752263676357,0.94921817,118040.0,118030.0,1.37483225]
[1752263676561,1.52985834,118040.0,118030.0,1.17276]
[1752263677459,1.1929908,118040.0,118030.0,1.17276]
[1752263677863,1.1929908,118040.0,118030.0,1.19576]
[1752263678155,1.59076097,118040.0,118030.0,1.17276]
[1752263678859,1.59067436,118040.0,118030.0,1.17276]
[1752263679258,1.59067436,118040.0,118030.0,1.3651324]
[1752263679463,1.59067436,118040.0,118030.0,1.19576]
[1752263679760,1.59067436,118040.0,118030.0,1.17276]
[1752263680257,1.59067436,118040.0,118030.0,1.4728824]
[1752263680258,0.44290602,118040.0,118030.0,1.4728824]
[1752263680460,0.02120339,118040.0,118030.0,1.35219257]
[1752263680664,0.6318738,118050.0,118040.0,0.368368]
[1752263680866,0.4625226,118050.0,118040.0,0.368368]
[1752263681060,0.4413726,118050.0,118040.0,0.76613817]
[1752263681260,0.6107163,118050.0,118040.0,0.76613817]
[1752263681461,0.6107163,118050.0,118040.0,0.368368]
[1752263681762,0.38246997,118050.0,118040.0,0.368368]
[1752263682064,0.38246997,118050.0,118040.0,0.871368]
[1752263682364,0.55181367,118050.0,118040.0,0.871368]
[1752263683061,0.56899342,118050.0,118040.0,0.871368]
[1752263683366,0.56899342,118050.0,118040.0,0.70201]
[1752263684364,0.56899342,118050.0,118040.0,1.09978017]
[1752263684968,0.56899342,118050.0,118040.0,0.70201]
[1752263685561,0.98791359,118050.0,118040.0,0.70201]
[1752263685757,0.98791359,118050.0,118040.0,0.69901]
[1752263686567,0.98791359,118050.0,118040.0,0.19901]
[1752263686568,0.99815359,118050.0,118040.0,0.19901]
[1752263687159,1.16757759,118050.0,118040.0,0.71827]
[1752263687362,1.22848022,118050.0,118040.0,0.71827]
[1752263690164,0.83071005,118050.0,118040.0,1.30543]
[1752263690369,1.04901622,118050.0,118040.0,1.30563]
[1752263690868,1.05925622,118050.0,118040.0,1.30563]
[1752263692070,0.99835359,118050.0,118040.0,1.30563]
[1752263692566,0.99835359,118050.0,118040.0,1.474988]
[1752263693264,0.99835359,118050.0,118040.0,1.30563]
[1752263693468,1.16777759,118050.0,118040.0,1.30563]
[1752263693668,1.22868022,118050.0,118040.0,1.30563]
[1752263695771,1.22868266,118050.0,118040.0,1.30563]
[1752263696171,1.16778003,118050.0,118040.0,1.17488]
[1752263696371,1.06409559,118050.0,118040.0,1.471608]
[1752263696564,1.04897468,118050.0,118040.0,1.471608]
[1752263696765,0.98811603,118050.0,118040.0,1.30225]
[1752263697466,1.04898163,118050.0,118040.0,1.30225]
[1752263698266,0.59034586,118050.0,118040.0,1.30225]
[1752263698566,0.98811603,118050.0,118040.0,1.30225]
[1752263698969,0.98811603,118050.0,118040.0,1.471608]
[1752263699474,0.98811603,118050.0,118040.0,1.30225]
[1752263700069,0.56919586,118050.0,118040.0,1.474608]
[1752263700271,0.39985216,118050.0,118040.0,1.87237817]
[1752263700574,0.03905216,118050.0,118040.0,1.87237817]
[1752263700966,0.4216656,118060.0,118050.0,0.2342537]
[1752263701170,0.0608656,118060.0,118050.0,0.77871954]
[1752263701377,0.2301949,118060.0,118050.0,0.77871954]
[1752263701576,0.6756528,118070.0,118060.0,0.3616093]
[1752263701870,0.6147872,118070.0,118060.0,1.37072]
[1752263702372,1.01255737,118070.0,118060.0,1.37072]
[1752263702672,1.01255737,118070.0,118060.0,1.36772]
[1752263702867,1.07342297,118070.0,118060.0,1.36772]
[1752263703266,0.7260528,118070.0,118060.0,1.37072]
[1752263703469,1.06295737,118070.0,118060.0,1.37072]
[1752263705186,0.6651872,118070.0,118060.0,1.37072]
[1752263705375,1.06295737,118070.0,118060.0,1.43951774]
[1752263707578,0.6651872,118070.0,118060.0,1.43951774]
[1752263707781,1.06295737,118070.0,118060.0,1.43951774]
[1752263708879,0.3608,118070.0,118060.0,2.00661721]
[1752263709083,0.530115,118070.0,118060.0,2.00661721]
[1752263709287,0.530115,118070.0,118060.0,2.01080485]
[1752263709485,0.530115,118070.0,118060.0,1.61303468]
[1752263711891,0.3608,118070.0,118060.0,1.61303468]
[1752263712089,0.530115,118070.0,118060.0,1.61303468]
[1752263712385,0.3608,118070.0,118060.0,2.01080485]
[1752263713181,0.530115,118070.0,118060.0,2.01080485]
[1752263713983,0.3608,118070.0,118060.0,2.01080485]
[1752263714184,0.3608,118070.0,118060.0,2.51080485]
[1752263714690,0.3618,118070.0,118060.0,2.51080485]
[1752263714989,0.3608,118070.0,118060.0,2.51180485]
[1752263716985,0.530115,118070.0,118060.0,1.94470538]
[1752263717184,0.97828517,118070.0,118060.0,2.11068704]
[1752263717385,0.97828517,118070.0,118060.0,1.94135774]
[1752263717585,0.97828517,118070.0,118060.0,1.44135774]
[1752263717884,0.97848517,118070.0,118060.0,1.61088704]
[1752263718084,0.97848517,118070.0,118060.0,1.61492609]
[1752263719195,0.530315,118070.0,118060.0,1.61492609]
[1752263719790,0.361,118070.0,118060.0,1.61492609]
[1752263720086,0.530315,118070.0,118060.0,1.61492609]
[1752263721394,0.530315,118070.0,118060.0,1.61088704]
[1752263722795,0.92808517,118070.0,118060.0,1.61088704]
[1752263723997,0.530315,118070.0,118060.0,1.61088704]
[1752263724197,0.92808517,118070.0,118060.0,1.61088704]
[1752263724394,0.97381517,118070.0,118060.0,1.36976]
[1752263724592,1.00239517,118070.0,118060.0,1.36976]
[1752263727000,1.00239517,118070.0,118060.0,1.5390893]
[1752263727192,1.00239517,118070.0,118060.0,1.36976]
[1752263727794,1.06326077,118070.0,118060.0,1.36976]
[1752263728901,1.42406077,118070.0,118060.0,1.36976]
[1752263730796,1.36319517,118070.0,118060.0,1.17748]
[1752263731399,1.53259517,118070.0,118060.0,1.17748]
[1752263731797,0.2150593,118060.0,118050.0,1.29622]
[1752263731997,1.06311625,118060.0,118050.0,1.29622]
[1752263733205,1.06311625,118060.0,118050.0,1.29722]
[1752263733608,1.06714049,118060.0,118050.0,1.29722]
[1752263734113,1.06714049,118060.0,118050.0,1.29922]
[1752263734312,1.23655649,118060.0,118050.0,1.29922]
[1752263734505,1.06311625,118060.0,118050.0,1.29922]
[1752263735312,0.1693437,118050.0,118040.0,0.09828427]
[1752263735507,0.22911616,118040.0,118030.0,0.77667]
[1752263735724,1.3854565,118040.0,118030.0,0.77667]
[1752263736014,1.44636328,118040.0,118030.0,0.77667]
[1752263736410,1.44636328,118040.0,118030.0,0.18891]
[1752263736611,1.44636328,118040.0,118030.0,0.77667]